[Event "Teplice Open 2019"]
[Site "Teplice"]
[Date "2019.06.18"]
[Round "4.18"]
[White "Kraus, Tomas"]
[Black "Kostolansky, Sebastian Lukas"]
[Result "1/2-1/2"]
[ECO "A48"]
[WhiteElo "2479"]
[BlackElo "2379"]
[Annotator "ChessBase"]
[PlyCount "112"]
[EventDate "2019.06.15"]
[EventType "swiss"]
[EventCountry "CZE"]
[SourceTitle "playchess.com"]
[Source "ChessBase"]
[SourceQuality "1"]
[TimeControl "40/5400+30:1800+30"]

1. d4 {[%emt 0:00:00]} Nf6 {[%emt 0:00:00]} 2. Nf3 {[%emt 0:00:23]} g6 {[%emt 0:00:19]} 3. b3 {[%emt 0:00:04]} Bg7 {[%emt 0:00:13]} 4. Bb2 {[%emt 0:00:04]} O-O {[%emt 0:00:21]} 5. e3 {[%emt 0:00:02]} b6 {[%emt 0:02:20]} 6. c4 {[%emt 0:03:04]} Bb7 {[%emt 0:00:33]} 7. Nc3 {[%emt 0:00:45]} d6 {[%emt 0:03:00]} 8. Be2 {[%emt 0:01:19]} Nbd7 {[%emt 0:00:22]} 9. O-O {[%emt 0:05:12]} Ne4 {[%emt 0:16:19]} 10. Nxe4 {[%emt 0:05:40]} Bxe4 {[%emt 0:00:08]} 11. Nd2 {[%emt 0:06:05]} Bb7 {[%emt 0:00:11]} 12. Bf3 {[%emt 0:07:30]} Qc8 {[%emt 0:05:13]} 13. Qc2 {[%emt 0:06:44]} Bxf3 {[%emt 0:05:14]} 14. Nxf3 {[%emt 0:00:05]} Qb7 {[%emt 0:00:20]} 15. Rfd1 {[%emt 0:05:13]} c5 {[%emt 0:07:26]} 16. dxc5 {[%emt 0:06:08]} bxc5 {[%emt 0:05:51]} 17. Bxg7 {[%emt 0:00:05]} Kxg7 {[%emt 0:00:07]} 18. e4 {[%emt 0:01:09]} f6 {[%emt 0:03:12]} 19. Rd3 {[%emt 0:03:31]} Ne5 {[%emt 0:03:54]} 20. Re3 {[%emt 0:01:25]} a5 {[%emt 0:03:13]} 21. a4 {[%emt 0:01:37]} Ra6 {[%emt 0:07:51]} 22. Nxe5 {[%emt 0:11:12]} fxe5 {[%emt 0:07:47]} 23. Rae1 {[%emt 0:02:13]} Rf4 {[%emt 0:02:29]} 24. Rh3 {[%emt 0:01:37]} Ra8 {[%emt 0:00:32]} 25. Qd2 {[%emt 0:09:34]} Raf8 {[%emt 0:04:07]} 26. Re2 {[%emt 0:01:17]} Qb4 {[%emt 0:01:58]} 27. Qxb4 {[%emt 0:00:17]} axb4 {[%emt 0:00:59]} 28. Rd3 {[%emt 0:03:06]} g5 {[%emt 0:04:43]} 29. h3 {[%emt 0:04:03]} h5 {[%emt 0:00:57]} 30. f3 {[%emt 0:06:46]} Kf7 {[%emt 0:01:26]} 31. Kf2 {[%emt 0:02:01]} Ke6 {[%emt 0:00:13]} 32. Kg3 {[%emt 0:01:04]} Kd7 {[%emt 0:01:54]} 33. Rd1 {[%emt 0:00:06]} Kc6 {[%emt 0:01:10]} 34. Rh1 {[%emt 0:00:12]} Kb6 {[%emt 0:03:17]} 35. Re3 {[%emt 0:00:39]} Kc6 {[%emt 0:01:54]} 36. Rd1 {[%emt 0:00:20]} Kd7 {[%emt 0:00:57]} 37. Rf1 {[%emt 0:01:55]} Ke6 {[%emt 0:01:13]} 38. Kf2 {[%emt 0:01:14]} Kf7 {[%emt 0:04:27]} 39. Ree1 {[%emt 0:02:38]} Ke6 {[%emt 0:01:12]} 40. Rh1 {[%emt 0:02:20]} g4 {[%emt 0:01:52]} 41. hxg4 {[%emt 0:02:12]} hxg4 {[%emt 0:00:00]} 42. Rh6+ {[%emt 0:03:49]} Kd7 {[%emt 0:01:17]} 43. Rg6 {[%emt 0:01:32]} Kc6 {[%emt 0:06:14]} 44. Rg7 {[%emt 0:03:16]} Kd7 {[%emt 0:00:17]} 45. Re3 {[%emt 0:01:26]} Ke6 {[%emt 0:04:54]} 46. Rg5 {[%emt 0:01:22]} Kd7 {[%emt 0:01:03]} 47. Rg6 {[%emt 0:00:28]} Kc6 {[%emt 0:00:34]} 48. Rg7 {[%emt 0:00:04]} Kd7 {[%emt 0:00:10]} 49. Re1 {[%emt 0:00:03]} Ke6 {[%emt 0:01:06]} 50. Re3 {[%emt 0:00:21]} Kd7 {[%emt 0:00:07]} 51. Kg3 {[%emt 0:02:15]} gxf3 {[%emt 0:00:10]} 52. Rxf3 {[%emt 0:00:10]} Rxf3+ {[%emt 0:01:56]} 53. gxf3 {[%emt 0:00:01]} Rh8 {[%emt 0:00:30]} 54. Kg2 {[%emt 0:02:10]} Ke6 {[%emt 0:00:32]} 55. Rg3 {[%emt 0:01:08]} Kd7 {[%emt 0:00:42]} 56. Rg7 {[%emt 0:02:45]} Ke6 {[%emt 0:00:13]} 1/2-1/2

[Event "Teplice Open 2019"]
[Site "Teplice"]
[Date "2019.06.18"]
[Round "4.19"]
[White "Kett, Tim"]
[Black "Blohberger, Felix"]
[Result "1-0"]
[ECO "B13"]
[WhiteElo "2197"]
[BlackElo "2475"]
[Annotator "ChessBase"]
[PlyCount "100"]
[EventDate "2019.06.15"]
[EventType "swiss"]
[EventCountry "CZE"]
[SourceTitle "playchess.com"]
[Source "ChessBase"]
[SourceQuality "1"]
[TimeControl "40/5400+30:1800+30"]

1. d4 {[%emt 0:00:00]} Nf6 {[%emt 0:00:00]} 2. Nc3 {[%emt 0:00:00]} d5 {[%emt 0:00:00]} 3. Bf4 {[%emt 0:00:00]} c5 {[%emt 0:00:00]} 4. e3 {[%emt 0:00:06]} cxd4 {[%emt 0:00:03]} 5. exd4 {[%emt 0:00:09]} a6 {[%emt 0:00:07]} 6. Nf3 {[%emt 0:01:19]} Nc6 {[%emt 0:00:21]} 7. Ne5 {[%emt 0:07:16]} Bd7 {[%emt 0:01:34]} 8. Be2 {[%emt 0:02:53]} e6 {[%emt 0:01:13]} 9. O-O {[%emt 0:01:06]} Qb6 {[%emt 0:04:26]} 10. Nxc6 {[%emt 0:05:24]} Bxc6 {[%emt 0:00:32]} 11. Rb1 {[%emt 0:01:21]} Be7 {[%emt 0:00:53]} 12. Qd3 {[%emt 0:03:39]} O-O {[%emt 0:00:41]} 13. Rfd1 {[%emt 0:00:34]} Rfc8 {[%emt 0:05:59]} 14. a3 {[%emt 0:04:41]} Qd8 {[%emt 0:02:08]} 15. Qg3 {[%emt 0:06:11]} b5 {[%emt 0:03:11]} 16. Be5 {[%emt 0:08:00]} Qd7 {[%emt 0:12:55]} 17. Rd3 {[%emt 0:15:40]} a5 {[%emt 0:14:33]} 18. Rf3 {[%emt 0:02:11]} Ne8 {[%emt 0:00:24]} 19. Bd3 {[%emt 0:01:55]} f6 {[%emt 0:06:58]} 20. Qh3 {[%emt 0:05:54]} g6 {[%emt 0:01:51]} 21. Bf4 {[%emt 0:06:57]} b4 {[%emt 0:00:50]} 22. axb4 {[%emt 0:02:41]} axb4 {[%emt 0:00:05]} 23. Ne2 {[%emt 0:00:36]} Ng7 {[%emt 0:01:22]} 24. Re1 {[%emt 0:03:20]} Ra2 {[%emt 0:09:29]} 25. g4 {[%emt 0:09:39]} Rca8 {[%emt 0:13:34]} 26. Qh6 {[%emt 0:01:17]} Bf8 {[%emt 0:02:59]} 27. Qh4 {[%emt 0:00:09]} Ra1 {[%emt 0:01:20]} 28. Nc1 {[%emt 0:01:36]} e5 {[%emt 0:02:56]} 29. dxe5 {[%emt 0:02:00]} fxe5 {[%emt 0:00:37]} 30. Rh3 {[%emt 0:01:46]} e4 {[%emt 0:04:17]} 31. Qxh7+ {[%emt 0:02:28]} Kf7 {[%emt 0:00:04]} 32. Be2 {[%emt 0:02:55]} Bc5 {[%emt 0:03:38]} 33. Be3 {[%emt 0:00:59]} d4 {[%emt 0:00:52]} 34. Rh6 {[%emt 0:00:10]} dxe3 {[%emt 0:03:13]} 35. Qxg6+ {[%emt 0:00:58]} Kg8 {[%emt 0:00:10]} 36. Qh7+ {[%emt 0:01:08]} Kf8 {[%emt 0:02:15]} 37. Rf6+ {[%emt 0:00:19]} Ke7 {[%emt 0:00:22]} 38. Qxg7+ {[%emt 0:00:35]} Kd8 {[%emt 0:00:08]} 39. Rd1 {[%emt 0:00:21]} Rxc1 {[%emt 0:01:40]} 40. Qxd7+ {[%emt 0:00:32]} Bxd7 {[%emt 0:00:06]} 41. Rxc1 {[%emt 0:30:06]} Ke7 {[%emt 0:02:19]} 42. Rf4 {[%emt 0:00:00]} exf2+ {[%emt 0:02:34]} 43. Rxf2 {[%emt 0:00:00]} Ra2 {[%emt 0:08:27]} 44. Rb1 {[%emt 0:00:00]} Ra8 {[%emt 0:09:19]} 45. Kf1 {[%emt 0:00:00]} Bxf2 46. Kxf2 {[%emt 0:00:00]} Rc8 {[%emt 0:01:23]} 47. Rc1 {[%emt 0:00:00]} Kf6 {[%emt 0:02:16]} 48. h4 {[%emt 0:00:00]} Ke5 {[%emt 0:00:26]} 49. Ke3 {[%emt 0:00:00]} Be6 {[%emt 0:05:13]} 50. h5 {[%emt 0:00:00]} Kd5 {[%emt 0:00:01] Kxe4+} 1-0

[Event "Teplice Open 2019"]
[Site "Teplice"]
[Date "2019.06.18"]
[Round "4.20"]
[White "Lagarde, Maxime"]
[Black "Tuma, Jiri"]
[Result "1-0"]
[ECO "A57"]
[WhiteElo "2599"]
[BlackElo "2257"]
[Annotator "ChessBase"]
[PlyCount "60"]
[EventDate "2019.06.15"]
[EventType "swiss"]
[EventCountry "CZE"]
[SourceTitle "playchess.com"]
[Source "ChessBase"]
[SourceQuality "1"]
[TimeControl "40/5400+30:1800+30"]

1. d4 {[%emt 0:00:16]} Nf6 {[%emt 0:00:42]} 2. c4 {[%emt 0:00:07]} c5 {[%emt 0:00:56]} 3. d5 {[%emt 0:00:04]} b5 {[%emt 0:00:58]} 4. Nf3 {[%emt 0:00:28]} g6 {[%emt 0:01:24]} 5. cxb5 {[%emt 0:00:59]} a6 {[%emt 0:03:55]} 6. b6 {[%emt 0:01:35]} Qxb6 {[%emt 0:05:07]} 7. Nc3 {[%emt 0:00:10]} Bg7 {[%emt 0:02:17]} 8. e4 {[%emt 0:00:37]} O-O {[%emt 0:01:55]} 9. Be2 {[%emt 0:01:13]} e6 {[%emt 0:04:04]} 10. O-O {[%emt 0:02:51]} Bb7 {[%emt 0:08:28]} 11. Bf4 {[%emt 0:24:56]} exd5 {[%emt 0:09:13]} 12. exd5 {[%emt 0:04:33]} d6 {[%emt 0:08:29]} 13. Nd2 {[%emt 0:01:22]} Nxd5 {[%emt 0:29:01]} 14. Nc4 {[%emt 0:01:16]} Nxc3 {[%emt 0:01:52]} 15. Nxb6 {[%emt 0:05:11]} Nxd1 {[%emt 0:00:08]} 16. Raxd1 {[%emt 0:00:27]} d5 {[%emt 0:08:24]} 17. Bd6 {[%emt 0:02:46]} Rd8 {[%emt 0:04:45]} 18. Bc7 {[%emt 0:01:20]} Re8 {[%emt 0:04:49]} 19. Bf3 {[%emt 0:03:41]} Ra7 {[%emt 0:00:50]} 20. Rfe1 {[%emt 0:00:19]} Bc6 {[%emt 0:01:36]} 21. Rxe8+ {[%emt 0:00:18]} Bxe8 {[%emt 0:00:01]} 22. Re1 {[%emt 0:00:18]} Bc6 {[%emt 0:01:03]} 23. Bxb8 {[%emt 0:00:16]} Rb7 {[%emt 0:00:07]} 24. Nxd5 {[%emt 0:00:06]} Rxb8 {[%emt 0:01:18]} 25. Ne7+ {[%emt 0:00:05]} Kf8 {[%emt 0:00:11]} 26. Nxc6 {[%emt 0:01:13]} Rxb2 {[%emt 0:00:06]} 27. Bd5 {[%emt 0:00:40]} Rd2 {[%emt 0:01:04]} 28. Bb3 {[%emt 0:00:40]} Rd6 {[%emt 0:00:32]} 29. Ne5 {[%emt 0:01:15]} Rd2 {[%emt 0:00:42]} 30. Nc4 {[%emt 0:00:43]} Kg8 {[%emt 0:00:36]} 1-0

[Event "Teplice Open 2019"]
[Site "Teplice"]
[Date "2019.06.18"]
[Round "4.22"]
[White "Freisler, Pavel"]
[Black "Stocek, Jiri"]
[Result "0-1"]
[ECO "A43"]
[WhiteElo "2246"]
[BlackElo "2551"]
[Annotator "ChessBase"]
[PlyCount "70"]
[EventDate "2019.06.15"]
[EventType "swiss"]
[EventCountry "CZE"]
[SourceTitle "playchess.com"]
[Source "ChessBase"]
[SourceQuality "1"]
[TimeControl "40/5400+30:1800+30"]

1. d4 {[%emt 0:00:00]} Nf6 {[%emt 0:00:44]} 2. Nf3 {[%emt 0:00:00]} c5 {[%emt 0:06:10]} 3. d5 {[%emt 0:08:25]} g6 {[%emt 0:00:39]} 4. Nc3 {[%emt 0:00:21]} Bg7 {[%emt 0:04:27]} 5. e4 {[%emt 0:00:08]} O-O {[%emt 0:00:09]} 6. Be2 {[%emt 0:07:58]} b5 {[%emt 0:00:47]} 7. e5 {[%emt 0:10:31]} Ng4 {[%emt 0:00:48]} 8. Bf4 {[%emt 0:04:58]} b4 {[%emt 0:05:12]} 9. Ne4 {[%emt 0:02:32]} d6 {[%emt 0:00:56]} 10. exd6 {[%emt 0:06:13]} Bxb2 {[%emt 0:09:30]} 11. Rb1 {[%emt 0:30:57]} Nf6 {[%emt 0:15:00]} 12. Nxc5 {[%emt 0:10:16]} Bc3+ {[%emt 0:02:39]} 13. Kf1 {[%emt 0:01:20]} exd6 {[%emt 0:01:56]} 14. Na4 {[%emt 0:01:08]} Ne4 {[%emt 0:04:11]} 15. Bd3 {[%emt 0:01:40]} Re8 {[%emt 0:04:55]} 16. Rb3 {[%emt 0:06:37]} Qf6 {[%emt 0:14:59]} 17. Bxe4 {[%emt 0:00:52]} Qxf4 {[%emt 0:00:21]} 18. Nxc3 {[%emt 0:00:11]} bxc3 {[%emt 0:00:05]} 19. Bd3 {[%emt 0:00:17]} Bg4 {[%emt 0:06:08]} 20. Rxc3 {[%emt 0:00:12]} Bxf3 {[%emt 0:00:14]} 21. gxf3 {[%emt 0:00:10]} Qe5 {[%emt 0:01:01]} 22. Rc4 {[%emt 0:02:56]} Nd7 {[%emt 0:02:55]} 23. h4 {[%emt 0:00:20]} Nf6 {[%emt 0:01:01]} 24. f4 {[%emt 0:01:48]} Qxd5 {[%emt 0:00:47]} 25. Rh3 {[%emt 0:00:03]} Rab8 {[%emt 0:01:58]} 26. Qf3 {[%emt 0:00:29]} Qa5 {[%emt 0:00:56]} 27. Kg2 {[%emt 0:00:30]} d5 {[%emt 0:04:04]} 28. Rc6 {[%emt 0:00:32]} Nh5 {[%emt 0:00:17]} 29. f5 {[%emt 0:00:37]} Qa4 {[%emt 0:00:30]} 30. fxg6 {[%emt 0:00:23]} hxg6 {[%emt 0:00:20]} 31. Ra6 {[%emt 0:01:51]} Qd4 {[%emt 0:00:35]} 32. Rg3 {[%emt 0:01:02]} Nxg3 {[%emt 0:03:38]} 33. Qxg3 {[%emt 0:00:01]} Rb6 {[%emt 0:01:28]} 34. Rxa7 {[%emt 0:00:28]} Rf6 {[%emt 0:00:22]} 35. Rb7 {[%emt 0:00:51]} Rf4 {[%emt 0:02:39]} 0-1

[Event "Teplice Open 2019"]
[Site "Teplice"]
[Date "2019.06.18"]
[Round "4.23"]
[White "Ali Marandi, Cemil Can"]
[Black "Horak, Martin"]
[Result "1-0"]
[ECO "D00"]
[WhiteElo "2520"]
[BlackElo "2244"]
[Annotator "ChessBase"]
[PlyCount "67"]
[EventDate "2019.06.15"]
[EventType "swiss"]
[EventCountry "CZE"]
[SourceTitle "playchess.com"]
[Source "ChessBase"]
[SourceQuality "1"]
[TimeControl "40/5400+30:1800+30"]

1. d4 {[%emt 0:02:46]} Nf6 {[%emt 0:00:00]} 2. Bf4 {[%emt 0:03:01]} d5 {[%emt 0:00:23]} 3. e3 {[%emt 0:00:16]} c5 {[%emt 0:00:13]} 4. c3 {[%emt 0:00:28]} Nc6 {[%emt 0:00:20]} 5. Nd2 {[%emt 0:00:11]} e6 {[%emt 0:00:46]} 6. Bd3 {[%emt 0:02:56]} Bd6 {[%emt 0:01:16]} 7. Bxd6 {[%emt 0:00:10]} Qxd6 {[%emt 0:00:05]} 8. f4 {[%emt 0:00:02]} Ne7 {[%emt 0:09:35]} 9. Qe2 {[%emt 0:06:25]} Qb6 {[%emt 0:03:33]} 10. Rb1 {[%emt 0:06:00]} Nf5 {[%emt 0:03:20]} 11. Ngf3 {[%emt 0:01:08]} Nd6 {[%emt 0:04:49]} 12. Ne5 {[%emt 0:05:02]} Bd7 {[%emt 0:04:31]} 13. O-O {[%emt 0:08:33]} Bb5 {[%emt 0:14:14]} 14. Bxb5+ {[%emt 0:02:09]} Nxb5 {[%emt 0:00:39]} 15. c4 {[%emt 0:04:46]} Nd6 {[%emt 0:08:22]} 16. dxc5 {[%emt 0:03:26]} Qxc5 {[%emt 0:00:29]} 17. b4 {[%emt 0:00:34]} Qc7 {[%emt 0:00:37]} 18. c5 {[%emt 0:02:18]} Nde4 {[%emt 0:04:48]} 19. Qb5+ {[%emt 0:00:33]} Ke7 {[%emt 0:00:36]} 20. Nxe4 {[%emt 0:00:43]} Nxe4 {[%emt 0:00:35]} 21. Rbc1 {[%emt 0:01:08]} f6 {[%emt 0:02:49]} 22. Nf3 {[%emt 0:01:27]} a5 {[%emt 0:10:27]} 23. Nd4 {[%emt 0:00:58]} Rhb8 {[%emt 0:16:16]} 24. Qe2 {[%emt 0:04:17]} g6 {[%emt 0:04:40]} 25. Qg4 {[%emt 0:03:08]} Qc8 {[%emt 0:02:23]} 26. c6 {[%emt 0:03:55]} b5 {[%emt 0:00:57]} 27. c7 {[%emt 0:01:03]} Rb6 {[%emt 0:00:18]} 28. Nc6+ {[%emt 0:00:13]} Kf7 {[%emt 0:03:41]} 29. bxa5 {[%emt 0:00:22]} Rba6 {[%emt 0:01:14]} 30. Rfd1 {[%emt 0:02:48]} Nd6 {[%emt 0:01:32]} 31. Nd8+ {[%emt 0:05:08]} Ke7 {[%emt 0:00:26]} 32. Qh4 {[%emt 0:00:07]} h5 {[%emt 0:00:46]} 33. Qg3 {[%emt 0:03:53]} Nc4 {[%emt 0:00:01]} 34. f5 {[%emt 0:00:11]} 1-0

[Event "Teplice Open 2019"]
[Site "Teplice"]
[Date "2019.06.18"]
[Round "4.24"]
[White "Loiseau, Quentin"]
[Black "Ehrke, Michael"]
[Result "1-0"]
[ECO "D32"]
[WhiteElo "2471"]
[BlackElo "2222"]
[Annotator "ChessBase"]
[PlyCount "33"]
[EventDate "2019.06.15"]
[EventType "swiss"]
[EventCountry "CZE"]
[SourceTitle "playchess.com"]
[Source "ChessBase"]
[SourceQuality "1"]
[TimeControl "40/5400+30:1800+30"]

1. d4 {[%emt 0:47:03]} d5 {[%emt 0:00:26]} 2. c4 {[%emt 0:00:36]} e6 {[%emt 0:00:13]} 3. Nc3 {[%emt 0:00:10]} c5 {[%emt 0:00:39]} 4. cxd5 {[%emt 0:00:12]} exd5 {[%emt 0:00:24]} 5. Nf3 {[%emt 0:00:08]} Nf6 {[%emt 0:01:23]} 6. Bg5 {[%emt 0:00:27]} Nc6 {[%emt 0:01:42]} 7. e3 {[%emt 0:15:24]} Be6 {[%emt 0:02:55]} 8. Bb5 {[%emt 0:05:57]} Qa5 {[%emt 0:14:57]} 9. Bxf6 {[%emt 0:02:03]} gxf6 {[%emt 0:00:11]} 10. dxc5 {[%emt 0:01:24]} a6 {[%emt 0:09:59]} 11. Bxc6+ {[%emt 0:01:58]} bxc6 {[%emt 0:00:06]} 12. Nd4 {[%emt 0:02:57]} Qxc5 {[%emt 0:16:42]} 13. O-O {[%emt 0:06:10]} Bg7 {[%emt 0:11:12]} 14. Rc1 {[%emt 0:03:07]} Qd6 {[%emt 0:02:15]} 15. Na4 {[%emt 0:02:43]} Rc8 {[%emt 0:07:09]} 16. Nb6 {[%emt 0:01:24]} Rc7 {[%emt 0:06:15]} 17. Qa4 {[%emt 0:01:08]} 1-0

[Event "Teplice Open 2019"]
[Site "Teplice"]
[Date "2019.06.18"]
[Round "4.25"]
[White "Navrotescu, Andreea-Cristiana"]
[Black "Vogel, Roven"]
[Result "1/2-1/2"]
[ECO "D36"]
[WhiteElo "2233"]
[BlackElo "2471"]
[Annotator "ChessBase"]
[PlyCount "110"]
[EventDate "2019.06.15"]
[EventType "swiss"]
[EventCountry "CZE"]
[SourceTitle "playchess.com"]
[Source "ChessBase"]
[SourceQuality "1"]
[TimeControl "40/5400+30:1800+30"]

1. c4 {[%emt 0:00:19]} e6 {[%emt 0:00:13]} 2. Nc3 {[%emt 0:00:05]} d5 {[%emt 0:00:08]} 3. d4 {[%emt 0:00:07]} Nf6 {[%emt 0:00:14]} 4. cxd5 {[%emt 0:00:13]} exd5 {[%emt 0:00:10]} 5. Bg5 {[%emt 0:00:04]} c6 {[%emt 0:00:17]} 6. Qc2 {[%emt 0:00:06]} Be7 {[%emt 0:00:15]} 7. e3 {[%emt 0:00:11]} Nbd7 {[%emt 0:00:08]} 8. Bd3 {[%emt 0:00:14]} Nh5 {[%emt 0:00:13]} 9. Bxe7 {[%emt 0:01:21]} Qxe7 {[%emt 0:00:02]} 10. Nge2 {[%emt 0:00:36]} Nb6 {[%emt 0:00:32]} 11. O-O {[%emt 0:03:36]} g6 {[%emt 0:01:10]} 12. Rae1 {[%emt 0:03:18]} O-O {[%emt 0:00:33]} 13. Nc1 {[%emt 0:06:54]} Ng7 {[%emt 0:15:27]} 14. f3 {[%emt 0:02:45]} f5 {[%emt 0:10:29]} 15. a3 {[%emt 0:07:05]} Be6 {[%emt 0:03:10]} 16. Nb3 {[%emt 0:00:34]} Kh8 {[%emt 0:09:48]} 17. Na5 {[%emt 0:11:24]} Bg8 {[%emt 0:04:00]} 18. b4 {[%emt 0:11:56]} Rae8 {[%emt 0:12:02]} 19. Na4 {[%emt 0:18:08]} Nc8 {[%emt 0:03:32]} 20. Qc5 {[%emt 0:04:54]} Qf7 {[%emt 0:02:40]} 21. Nb3 {[%emt 0:02:25]} f4 {[%emt 0:06:56]} 22. exf4 {[%emt 0:00:33]} Ne6 {[%emt 0:00:10]} 23. Qc2 {[%emt 0:04:11]} Nxf4 {[%emt 0:00:42]} 24. b5 {[%emt 0:00:59]} Rxe1 {[%emt 0:02:32]} 25. Rxe1 {[%emt 0:00:02]} cxb5 {[%emt 0:00:09]} 26. Bxb5 {[%emt 0:00:32]} Nd6 {[%emt 0:00:07]} 27. Bf1 {[%emt 0:00:57]} Nc4 {[%emt 0:03:16]} 28. Qc3 {[%emt 0:08:19]} b6 {[%emt 0:02:26]} 29. Nd2 {[%emt 0:05:37]} Nd6 {[%emt 0:01:09]} 30. g3 {[%emt 0:01:03]} Ne6 {[%emt 0:01:03]} 31. Qc6 {[%emt 0:02:38]} Nf5 {[%emt 0:06:35]} 32. Qxd5 {[%emt 0:00:05]} Qg7 {[%emt 0:00:52]} 33. Qe5 {[%emt 0:01:19]} Nfxd4 {[%emt 0:00:09]} 34. f4 {[%emt 0:02:26]} Rc8 {[%emt 0:00:37]} 35. Bd3 {[%emt 0:00:43]} b5 {[%emt 0:01:41]} 36. Nb2 {[%emt 0:00:52]} Rc3 {[%emt 0:02:52]} 37. Qxg7+ {[%emt 0:01:20]} Kxg7 {[%emt 0:00:02]} 38. Re5 {[%emt 0:00:35]} Rxa3 {[%emt 0:00:38]} 39. Bxb5 {[%emt 0:00:19]} Ra2 {[%emt 0:03:29]} 40. Nbc4 {[%emt 0:00:01]} a6 {[%emt 0:07:57]} 41. Bd7 {[%emt 0:30:31]} Nxf4 {[%emt 0:02:34]} 42. gxf4 {[%emt 0:00:00]} Bxc4 {[%emt 0:00:08]} 43. Nxc4 {[%emt 0:00:00]} Nf3+ {[%emt 0:00:06]} 44. Kf1 {[%emt 0:00:00]} Nxh2+ {[%emt 0:06:14]} 45. Ke1 {[%emt 0:00:00]} Nf3+ {[%emt 0:00:05]} 46. Kd1 {[%emt 0:00:00]} Nxe5 {[%emt 0:00:07]} 47. fxe5 {[%emt 0:00:00]} h5 {[%emt 0:03:49]} 48. e6 {[%emt 0:00:00]} Kf6 {[%emt 0:00:52]} 49. Ne5 {[%emt 0:00:00]} Ke7 {[%emt 0:03:17]} 50. Nxg6+ {[%emt 0:00:00]} Kd6 {[%emt 0:00:34]} 51. Bc8 {[%emt 0:00:00]} Ra4 {[%emt 0:00:44]} 52. e7 {[%emt 0:00:00]} Rd4+ {[%emt 0:00:10]} 53. Ke2 {[%emt 0:00:00]} Re4+ {[%emt 0:00:06]} 54. Kf3 {[%emt 0:00:00]} Rxe7 {[%emt 0:00:09]} 55. Nxe7 {[%emt 0:00:00]} Ke5 {[%emt 0:00:07] Ke4+} 1/2-1/2

[Event "Teplice Open 2019"]
[Site "Teplice"]
[Date "2019.06.18"]
[Round "4.26"]
[White "Haldorsen, Benjamin"]
[Black "Cholleti Sahajasri"]
[Result "1-0"]
[ECO "B23"]
[WhiteElo "2454"]
[BlackElo "2207"]
[Annotator "ChessBase"]
[PlyCount "73"]
[EventDate "2019.06.15"]
[EventType "swiss"]
[EventCountry "CZE"]
[SourceTitle "playchess.com"]
[Source "ChessBase"]
[SourceQuality "1"]
[TimeControl "40/5400+30:1800+30"]

1. e4 {[%emt 0:00:00]} c5 {[%emt 0:00:00]} 2. Nc3 {[%emt 0:00:36]} d6 {[%emt 0:00:00]} 3. f4 {[%emt 0:00:40]} Nc6 {[%emt 0:01:03]} 4. Nf3 {[%emt 0:00:32]} g6 {[%emt 0:01:26]} 5. Bc4 {[%emt 0:00:45]} Bg7 {[%emt 0:02:17]} 6. O-O {[%emt 0:00:35]} Nf6 {[%emt 0:00:14]} 7. d3 {[%emt 0:00:24]} O-O {[%emt 0:00:08]} 8. Qe1 {[%emt 0:00:39]} Bg4 {[%emt 0:02:09]} 9. f5 {[%emt 0:00:17]} Bxf3 {[%emt 0:22:03]} 10. Rxf3 {[%emt 0:00:06]} Ne5 {[%emt 0:09:24]} 11. Rh3 {[%emt 0:00:26]} e6 {[%emt 0:08:18]} 12. Bg5 {[%emt 0:25:54]} h6 {[%emt 0:14:01]} 13. Bxh6 {[%emt 0:06:43]} Bxh6 {[%emt 0:00:05]} 14. Rxh6 {[%emt 0:00:09]} Nfg4 {[%emt 0:03:45]} 15. Rh3 {[%emt 0:09:18]} Qf6 {[%emt 0:05:11]} 16. Qh4 {[%emt 0:06:43]} Qxh4 {[%emt 0:01:55]} 17. Rxh4 {[%emt 0:00:12]} Nxc4 {[%emt 0:06:29]} 18. dxc4 {[%emt 0:01:38]} Ne3 {[%emt 0:00:22]} 19. f6 {[%emt 0:04:57]} Nxc4 {[%emt 0:00:12]} 20. Re1 {[%emt 0:01:34]} Rfd8 {[%emt 0:03:29]} 21. b3 {[%emt 0:08:29]} Ne5 {[%emt 0:00:07]} 22. Re3 {[%emt 0:01:31]} g5 {[%emt 0:00:45]} 23. Rh5 {[%emt 0:00:06]} Ng6 {[%emt 0:00:05]} 24. Rxg5 {[%emt 0:00:40]} Kf8 {[%emt 0:00:02]} 25. Rd3 {[%emt 0:06:06]} a6 {[%emt 0:00:31]} 26. Ne2 {[%emt 0:09:40]} Ke8 {[%emt 0:01:00]} 27. Kf2 {[%emt 0:01:05]} b5 {[%emt 0:02:00]} 28. g3 {[%emt 0:01:08]} Rac8 {[%emt 0:03:29]} 29. h4 {[%emt 0:00:11]} c4 {[%emt 0:00:34]} 30. Rd2 {[%emt 0:00:27]} Nf8 {[%emt 0:01:27]} 31. Nf4 {[%emt 0:01:02]} cxb3 {[%emt 0:01:34]} 32. axb3 {[%emt 0:00:21]} Rc6 {[%emt 0:02:54]} 33. Ke2 {[%emt 0:02:00]} Rdc8 {[%emt 0:01:23]} 34. Kd1 {[%emt 0:00:42]} Rb6 {[%emt 0:01:24]} 35. b4 {[%emt 0:05:44]} Rc4 {[%emt 0:01:44]} 36. Rg8 {[%emt 0:00:12]} Rxb4 {[%emt 0:00:10]} 37. Nh5 {[%emt 0:00:12]} 1-0

[Event "Teplice Open 2019"]
[Site "Teplice"]
[Date "2019.06.18"]
[Round "4.27"]
[White "Lorscheid, Gerhard"]
[Black "Cawdery, Daniel"]
[Result "1/2-1/2"]
[ECO "D80"]
[WhiteElo "2214"]
[BlackElo "2428"]
[Annotator "NA"]
[PlyCount "58"]
[EventDate "2019.06.15"]
[EventType "swiss"]
[EventCountry "CZE"]
[SourceTitle "playchess.com"]
[Source "ChessBase"]
[SourceQuality "1"]
[TimeControl "40/5400+30:1800+30"]

1. d4 {[%emt 0:00:00]} Nf6 {[%emt 0:00:00]} 2. c4 {[%emt 0:00:00]} g6 {[%emt 0:00:16]} 3. Nc3 {[%emt 0:00:00]} d5 {[%emt 0:00:03]} 4. Bg5 {[%emt 0:00:17]} Bg7 {[%emt 0:00:35]} 5. e3 {[%emt 0:01:40]} c5 {[%emt 0:01:35]} 6. dxc5 {[%emt 0:01:34]} Qa5 {[%emt 0:00:42]} 7. Bxf6 {[%emt 0:06:43]} Bxf6 {[%emt 0:00:04]} 8. Rc1 {[%emt 0:00:17]} dxc4 {[%emt 0:00:26]} 9. Bxc4 {[%emt 0:00:09]} O-O {[%emt 0:00:43]} 10. Nf3 {[%emt 0:06:43]} Qxc5 {[%emt 0:03:41]} 11. Qe2 {[%emt 0:02:01]} Bg7 {[%emt 0:01:20]} 12. O-O {[%emt 0:02:02]} Nc6 {[%emt 0:03:17]} 13. Nd5 {[%emt 0:25:24]} Qd6 {[%emt 0:26:30]} 14. Rfd1 {[%emt 0:02:01]} Bg4 {[%emt 0:01:04]} 15. Nb6 {[%emt 0:13:17]} Bxf3 {[%emt 0:07:37]} 16. Qxf3 {[%emt 0:04:58]} Nd4 {[%emt 0:01:38]} 17. Rxd4 {[%emt 0:00:11]} Qxb6 {[%emt 0:00:13]} 18. Rd7 {[%emt 0:00:15]} Qxb2 {[%emt 0:02:12]} 19. Rcd1 {[%emt 0:01:13]} Qb4 {[%emt 0:04:16]} 20. Qe4 {[%emt 0:04:28]} e6 {[%emt 0:08:01]} 21. Rxb7 {[%emt 0:00:50]} Qa4 {[%emt 0:00:19]} 22. Rdb1 {[%emt 0:05:01]} Rac8 {[%emt 0:01:07]} 23. R7b4 {[%emt 0:00:16]} Qa3 {[%emt 0:02:13]} 24. g3 {[%emt 0:01:48]} a5 {[%emt 0:03:01]} 25. Rb5 {[%emt 0:01:27]} Qa4 {[%emt 0:05:55]} 26. Bd5 {[%emt 0:00:05]} Qa3 {[%emt 0:01:07]} 27. Bc4 {[%emt 0:00:09]} Qa4 {[%emt 0:00:05]} 28. Bd5 {[%emt 0:00:03]} Qa3 {[%emt 0:00:02]} 29. Bc4 {[%emt 0:00:12]} Qa4 {[%emt 0:00:02]} 1/2-1/2